{"text_format":"1","workbook":"xlsx","n_sheets":2,"sheets":["Общий брак ","Буйко"],"not_rendered":{"charts":11,"images":0,"macros":1,"external_links":0,"defined_names":0,"comments":0,"pivot_tables":0},"unopened":[],"bounds":{"document_bytes":16777216,"sheet_cells":100000,"rows_first":2000,"rows_last":500,"rows_between":2000,"halvings":0,"cell_chars":16384,"cell_head_chars":4096},"cells_cut":0,"cells_raw":0,"read":"whole","date_system":"1904"}

{"sheet":"Общий брак ","index":0,"n_rows":82,"n_cols":12,"rows_kept":82,"cut":false,"hidden":false,"merged":[[0,2,0,6],[42,2,42,6],[43,1,43,4],[43,5,44,5],[1,1,1,4],[1,6,1,9],[1,11,2,11]]}
["                                                           ЯНВАРЬ 2013 г.",null,"………………….2015 г."]
[null,"Массовые виды",null,null,null,null,"Документная",null,null,null,null,"ИТОГО, кг."]
["вид несоответствий ","Буйко","Булавский А.В.","Хомич Н.Н.","Сандульская Л.А.",null,"Кузьбар","Булавский А.В.","Хомич Н.Н.","Сандульская Л.А."]
["Формат не соотв. размеру",800,null,null,null,{"$f":"SUM(B4:E4)","v":800},{"$f":"SUM(Буйко!M43)","v":0},null,null,null,{"$f":"SUM(G4:J4)","v":0},{"$f":"SUM(K4+F4)","v":800}]
["Спутник",{"$f":"SUM(Буйко!M23)","v":0},null,null,null,{"$f":"SUM(B5:E5)","v":0},{"$f":"SUM(Буйко!M44)","v":0},null,null,null,{"$f":"SUM(G5:J5)","v":0},{"$f":"SUM(K5+F5)","v":0}]
["Сорность",{"$f":"SUM(Буйко!M9)","v":0},null,null,null,{"$f":"SUM(B6:E6)","v":0},{"$f":"SUM(Буйко!M45)","v":600},null,null,null,{"$f":"SUM(G6:J6)","v":600},{"$f":"SUM(K6+F6)","v":600}]
["Складка",{"$f":"SUM(Буйко!M7)","v":30},null,null,null,{"$f":"SUM(B7:E7)","v":30},{"$f":"SUM(Буйко!M46)","v":0},null,null,null,{"$f":"SUM(G7:J7)","v":0},{"$f":"SUM(K7+F7)","v":30}]
["Ребристость",{"$f":"SUM(Буйко!M8)","v":0},null,null,null,{"$f":"SUM(B8:E8)","v":0},{"$f":"SUM(Буйко!M47)","v":110.5},null,null,null,{"$f":"SUM(G8:J8)","v":110.5},{"$f":"SUM(K8+F8)","v":110.5}]
["разнооттеночность",{"$f":"SUM(Буйко!M33)","v":0},null,null,null,{"$f":"SUM(B9:E9)","v":0},{"$f":"SUM(Буйко!M48)","v":0},null,null,null,0,{"$f":"SUM(K9+F9)","v":0}]
["Пятна от пены",{"$f":"SUM(Буйко!M37)","v":0},null,null,null,0,{"$f":"SUM(Буйко!M49)","v":4723.3},null,null,null,4723.3,4723.3]
["Пятна от каландра",{"$f":"SUM(Буйко!M12)","v":520},null,null,null,520,{"$f":"SUM(Буйко!M50)","v":0},null,null,null,0,520]
["Пусковая",{"$f":"SUM(Буйко!M3)","v":1050},null,null,null,1050,{"$f":"SUM(Буйко!M51)","v":0},null,null,null,0,1050]
["Прокл.не соотв.ТУ",{"$f":"SUM(Буйко!M16)","v":2080},null,null,null,2080,{"$f":"SUM(Буйко!M52)","v":0},null,null,null,0,2080]
["Продушина",{"$f":"SUM(Буйко!M6)","v":800},null,null,null,800,{"$f":"SUM(Буйко!M53)","v":102.3},null,null,null,102.3,902.3]
["Переходная",1000,null,null,null,1000,{"$f":"SUM(Буйко!M54)","v":0},null,null,null,0,1000]
["Обрывы",{"$f":"SUM(Буйко!M31)","v":900},null,null,null,900,{"$f":"SUM(Буйко!M55)","v":0},null,null,null,0,900]
["Нет защиты",{"$f":"SUM(Буйко!M30)","v":0},null,null,null,0,{"$f":"SUM(Буйко!M56)","v":0},null,null,null,0,0]
["Нет защитного волокна",{"$f":"SUM(Буйко!M34)","v":0},null,null,null,0,{"$f":"SUM(Буйко!M57)","v":0},null,null,null,0,0]
["Неравномерный просвет",{"$f":"SUM(Буйко!M29)","v":2100},null,null,null,2100,{"$f":"SUM(Буйко!M58)","v":0},null,null,null,0,2100]
["Недомол",{"$f":"SUM(Буйко!M28)","v":0},null,null,null,0,{"$f":"SUM(Буйко!M59)","v":0},null,null,null,0,0]
["Не соотв.по цвету",{"$f":"SUM(Буйко!M26)","v":850},null,null,null,850,{"$f":"SUM(Буйко!M60)","v":0},null,null,null,0,850]
["Надрывы",{"$f":"SUM(Буйко!M22)","v":0},null,null,null,0,{"$f":"SUM(Буйко!M61)","v":0},null,null,null,0,0]
["Мало защитного волокна",{"$f":"SUM(Буйко!M36)","v":0},null,null,null,0,{"$f":"SUM(Буйко!M62)","v":0},null,null,null,0,0]
["Линейная деф.не соотв.ТУ",{"$f":"SUM(Буйко!M19)","v":0},null,null,null,0,{"$f":"SUM(Буйко!M63)","v":0},null,null,null,0,0]
["Коробатая",{"$f":"SUM(Буйко!M25)","v":0},null,null,null,0,{"$f":"SUM(Буйко!M64)","v":0},null,null,null,0,0]
["Колебания массы",{"$f":"SUM(Буйко!M14)","v":860},null,null,null,860,{"$f":"SUM(Буйко!M65)","v":0},null,null,null,0,860]
["Зольность не соотв.ТУ",{"$f":"SUM(Буйко!M18)","v":0},null,null,null,{"$f":"SUM(B27:E27)","v":0},{"$f":"SUM(Буйко!M66)","v":0},null,null,null,{"$f":"SUM(G27:J27)","v":0},{"$f":"SUM(K27+F27)","v":0}]
["Дыры",{"$f":"SUM(Буйко!M11)","v":0},null,null,null,{"$f":"SUM(B28:E28)","v":0},{"$f":"SUM(Буйко!M67)","v":0},null,null,null,{"$f":"SUM(G28:J28)","v":0},{"$f":"SUM(K28+F28)","v":0}]
["Деформация рулона, Мягкий край рулона",{"$f":"SUM(Буйко!M13)","v":0},null,null,null,{"$f":"SUM(B29:E29)","v":0},{"$f":"SUM(Буйко!M68)","v":3000},null,null,null,{"$f":"SUM(G29:J29)","v":3000},{"$f":"SUM(K29+F29)","v":3000}]
["Грязные полосы,пятна ",{"$f":"SUM(Буйко!M10)","v":0},null,null,null,{"$f":"SUM(B30:E30)","v":0},{"$f":"SUM(Буйко!M69)","v":0},null,null,null,{"$f":"SUM(G30:J30)","v":0},{"$f":"SUM(K30+F30)","v":0}]
["Гладк.не соотв.ТУ",{"$f":"SUM(Буйко!M15)","v":0},null,null,null,{"$f":"SUM(B31:E31)","v":0},{"$f":"SUM(Буйко!M70)","v":0},null,null,null,{"$f":"SUM(G31:J31)","v":0},{"$f":"SUM(K31+F31)","v":0}]
["Выщипы",{"$f":"SUM(Буйко!M27)","v":0},null,null,null,0,{"$f":"SUM(Буйко!M71)","v":0},null,null,null,0,{"$f":"SUM(K32+F32)","v":0}]
["Выработка бассейнов",1000,null,null,null,1000,{"$f":"SUM(Буйко!M72)","v":0},null,null,null,0,1000]
["впитываемость",{"$f":"SUM(Буйко!M32)","v":0},null,null,null,0,{"$f":"SUM(Буйко!M73)","v":0},null,null,null,0,0]
["Воздушная складка",{"$f":"SUM(Буйко!M24)","v":0},null,null,null,0,{"$f":"SUM(Буйко!M74)","v":0},null,null,null,0,0]
["Брак по намотке,нет обрезки, махровый край",{"$f":"SUM(Буйко!M21)","v":460},null,null,null,460,{"$f":"SUM(Буйко!M75)","v":0},null,null,null,0,460]
["Kit не соотв.ТУ ",{"$f":"SUM(Буйко!M17)","v":0},null,null,null,0,{"$f":"SUM(Буйко!M76)","v":0},null,null,null,0,0]
["4 защитных волокна",{"$f":"SUM(Буйко!M35)","v":0},null,null,null,{"$f":"SUM(B38:E38)","v":0},{"$f":"SUM(Буйко!M77)","v":0},null,null,null,0,0]
["количество несоответствий [Σ ]",{"$f":"SUM(B4:B38)","v":12450},0,0,0,12450,8536.1,0,0,0,8536.1,20986.1]
["без пусковой, выраб.",{"$f":"SUM(B39)-SUM(B4:B5)","v":11650},0,0,0,11650,8536.1,0,0,0,8536.1,20186.099999999999]
[]
[]
["                                                           ЯНВАРЬ 2013 г.",null,"2015год"]
["2014год","Все виды бумаг",null,null,null,"ИТОГО, кг."]
["вид несоответствий ","Кузьбар","Булавский А.В.","Хомич Н.Н.","Сандульская Л.А."]
["Пусковая",{"$f":"SUM(B4+G4)","v":800},0,0,0,{"$f":"SUM(B46:E46)","v":800}]
["Выработка бассейнов",0,0,0,0,{"$f":"SUM(B47:E47)","v":0}]
["Переходная",600,0,0,0,{"$f":"SUM(B48:E48)","v":600}]
["Продушина",{"$f":"SUM(B7+G7)","v":30},{"$f":"SUM(C7+H7)","v":0},{"$f":"SUM(D7+I7)","v":0},{"$f":"SUM(E7+J7)","v":0},{"$f":"SUM(B49:E49)","v":30}]
["Складка",110.5,0,0,0,{"$f":"SUM(B50:E50)","v":110.5}]
["Ребристость",0,0,0,0,{"$f":"SUM(B51:E51)","v":0}]
["Сорность",4723.3,0,0,0,4723.3]
["Грязные полосы,пятна ",520,0,0,0,520]
["Дыры",1050,0,0,0,1050]
["Пятна от каландра",2080,0,0,0,2080]
["Деформация рулона, Мягкий край рулона",902.3,0,0,0,902.3]
["Колебания массы",1000,0,0,0,1000]
["Гладк.не соотв.ТУ",900,0,0,0,900]
["Прокл.не соотв.ТУ",0,0,0,0,0]
["Kit не соотв.ТУ ",0,0,0,0,0]
["Зольность не соотв.ТУ",2100,0,0,0,2100]
["Линейная деф.не соотв.ТУ",0,0,0,0,0]
["Формат не соотв. размеру",850,0,0,0,850]
["Брак по намотке,нет обрезки, махровый край",0,0,0,0,0]
["Надрывы",0,0,0,0,0]
["Спутник",0,0,0,0,0]
["Воздушная складка",0,0,0,0,0]
["Коробатая",860,0,0,0,860]
["Не прокрашенные пятна ",0,0,0,0,{"$f":"SUM(B69:E69)","v":0}]
["Выщипы",0,0,0,0,{"$f":"SUM(B70:E70)","v":0}]
["Недомол",3000,0,0,0,{"$f":"SUM(B71:E71)","v":3000}]
["Неравномерный просвет",0,0,0,0,{"$f":"SUM(B72:E72)","v":0}]
["Нет защиты",0,0,0,0,{"$f":"SUM(B73:E73)","v":0}]
["Обрывы",0,0,0,0,{"$f":"SUM(B74:E74)","v":0}]
["впитываемость",1000,0,0,0,1000]
["разнооттеночность",0,0,0,0,0]
["Нет защитного волокна",0,0,0,0,0]
["4 защитных волокна",460,0,0,0,460]
["Мало защитного волокна",0,0,0,0,0]
["Фон",{"$f":"SUM(B38+G38)","v":0},{"$f":"SUM(C38+H38)","v":0},{"$f":"SUM(D38+I38)","v":0},{"$f":"SUM(E38+J38)","v":0},{"$f":"SUM(B80:E80)","v":0}]
["количество несоответствий [Σ ]",{"$f":"SUM(B46:B80)","v":20986.1},{"$f":"SUM(C46:C80)","v":0},{"$f":"SUM(D46:D80)","v":0},{"$f":"SUM(E46:E80)","v":0},{"$f":"SUM(F46:F80)","v":20986.1}]
["без пусковой, выраб.",{"$f":"SUM(B81)-SUM(B46:B47)","v":20186.099999999999},{"$f":"SUM(C81)-SUM(C46:C47)","v":0},{"$f":"SUM(D81)-SUM(D46:D47)","v":0},{"$f":"SUM(E81)-SUM(E46:E47)","v":0},{"$f":"SUM(F81)-SUM(F46:F47)","v":20186.099999999999}]

{"sheet":"Буйко","index":1,"n_rows":78,"n_cols":13,"rows_kept":78,"cut":false,"hidden":false,"merged":[[39,8,39,10],[39,12,39,13],[40,0,40,12],[41,1,41,11],[0,12,0,13],[1,1,1,11],[0,4,0,10]]}
[" 2015 г. БДМ № 1",null,null,null,"Буйко"]
["вид несоответствий ","массовые виды"]
["Пусковая",1050,null,null,null,null,null,null,null,null,null,null,{"$f":"SUM(B3:L3)","v":1050}]
["Выработка бассейнов",null,null,null,null,null,null,null,null,null,null,null,{"$f":"SUM(B4:L4)","v":0}]
["Переходная",null,null,null,null,null,null,null,null,null,null,null,0]
["Продушина",500,300,null,null,null,null,null,null,null,null,null,800]
["Складка",30,null,null,null,null,null,null,null,null,null,null,30]
["Ребристость",null,null,null,null,null,null,null,null,null,null,null,0]
["Сорность",null,null,null,null,null,null,null,null,null,null,null,0]
["Грязные полосы,пятна ",null,null,null,null,null,null,null,null,null,null,null,0]
["Дыры",null,null,null,null,null,null,null,null,null,null,null,0]
["Пятна ",520,null,null,null,null,null,null,null,null,null,null,520]
["Деформация рулона, Мягкий край рулона",null,null,null,null,null,null,null,null,null,null,null,0]
["Колебания массы",860,null,null,null,null,null,null,null,null,null,null,860]
["Гладк.не соотв.ТУ",null,null,null,null,null,null,null,null,null,null,null,0]
["Прокл.не соотв.ТУ",2080,null,null,null,null,null,null,null,null,null,null,2080]
["Kit не соотв.ТУ ",null,null,null,null,null,null,null,null,null,null,null,0]
["Зольность не соотв.ТУ",null,null,null,null,null,null,null,null,null,null,null,0]
["Линейная деф.не соотв.ТУ",null,null,null,null,null,null,null,null,null,null,null,0]
["Формат не соотв. размеру",null,null,null,null,null,null,null,null,null,null,null,0]
["Брак по намотке,нет обрезки, махровый край",460,null,null,null,null,null,null,null,null,null,null,460]
["Надрывы",null,null,null,null,null,null,null,null,null,null,null,0]
["Спутник",null,null,null,null,null,null,null,null,null,null,null,0]
["Воздушная складка",null,null,null,null,null,null,null,null,null,null,null,0]
["Коробатая",null,null,null,null,null,null,null,null,null,null,null,0]
["Не прокрашенные пятна",850,null,null,null,null,null,null,null,null,null,null,850]
["Пузыри",null,null,null,null,null,null,null,null,null,null,null,0]
["Недомол",null,null,null,null,null,null,null,null,null,null,null,0]
["Неравномерный просвет",1050,1050,null,null,null,null,null,null,null,null,null,2100]
["Скручивамость",null,null,null,null,null,null,null,null,null,null,null,0]
["Обрывы",900,null,null,null,null,null,null,null,null,null,null,900]
["впитываемость",null,null,null,null,null,null,null,null,null,null,null,0]
["разнооттеночность",null,null,null,null,null,null,null,null,null,null,null,0]
["Нет защитного волокна",null,null,null,null,null,null,null,null,null,null,null,0]
["4 защитных волокна",null,null,null,null,null,null,null,null,null,null,null,0]
["Мало защитного волокна",null,null,null,null,null,null,null,null,null,null,null,0]
["Пятнаот пены",null,null,null,null,null,null,null,null,null,null,null,0]
["количество несоответствий [Σ ]",{"$f":"SUM(B3:B37)","v":8300},1350,0,0,0,0,0,0,0,0,0,{"$f":"SUM(M3:M37)","v":9650}]
[]
["2013 г. БДМ № 1"]
["Аринич"]
["вид несоответствий ","документная"]
["Пусковая",null,null,null,null,null,null,null,null,null,null,null,{"$f":"SUM(B43:L43)","v":0}]
["Выработка бассейнов",null,null,null,null,null,null,null,null,null,null,null,{"$f":"SUM(B44:L44)","v":0}]
["Переходная",600,null,null,null,null,null,null,null,null,null,null,600]
["Продушина",null,null,null,null,null,null,null,null,null,null,null,0]
["Складка",110.5,null,null,null,null,null,null,null,null,null,null,110.5]
["Ребристость",null,null,null,null,null,null,null,null,null,null,null,0]
["Сорность",782.3,3941,null,null,null,null,null,null,null,null,null,4723.3]
["Грязные полосы,пятна ",null,null,null,null,null,null,null,null,null,null,null,0]
["Дыры",null,null,null,null,null,null,null,null,null,null,null,0]
["Пятна от каландра",null,null,null,null,null,null,null,null,null,null,null,0]
["Деформация рулона, Мягкий край рулона",102.3,null,null,null,null,null,null,null,null,null,null,102.3]
["Колебания массы",null,null,null,null,null,null,null,null,null,null,null,0]
["Гладк.не соотв.ТУ",null,null,null,null,null,null,null,null,null,null,null,0]
["Прокл.не соотв.ТУ",null,null,null,null,null,null,null,null,null,null,null,0]
["Kit не соотв.ТУ ",null,null,null,null,null,null,null,null,null,null,null,0]
["Зольность не соотв.ТУ",null,null,null,null,null,null,null,null,null,null,null,0]
["Линейная деф.не соотв.ТУ",null,null,null,null,null,null,null,null,null,null,null,0]
["Формат не соотв. размеру",null,null,null,null,null,null,null,null,null,null,null,0]
["Брак по намотке,нет обрезки, махровый край",null,null,null,null,null,null,null,null,null,null,null,0]
["Надрывы",null,null,null,null,null,null,null,null,null,null,null,0]
["Спутник",null,null,null,null,null,null,null,null,null,null,null,0]
["Воздушная складка",null,null,null,null,null,null,null,null,null,null,null,0]
["Коробатая",null,null,null,null,null,null,null,null,null,null,null,0]
["Непрокрашенные пятна",null,null,null,null,null,null,null,null,null,null,null,0]
["Выщипы",null,null,null,null,null,null,null,null,null,null,null,0]
["Недомол",2550,450,null,null,null,null,null,null,null,null,null,3000]
["Неравномерный просвет",null,null,null,null,null,null,null,null,null,null,null,0]
["Нет защиты",null,null,null,null,null,null,null,null,null,null,null,0]
["Обрывы",null,null,null,null,null,null,null,null,null,null,null,0]
["впитываемость",null,null,null,null,null,null,null,null,null,null,null,0]
["разнооттеночность",null,null,null,null,null,null,null,null,null,null,null,0]
["Нет защитного волокна",null,null,null,null,null,null,null,null,null,null,null,0]
["4 защитных волокна",null,null,null,null,null,null,null,null,null,null,null,0]
["Мало защитного волокна",null,null,null,null,null,null,null,null,null,null,null,0]
["Пятнаот пены",null,null,null,null,null,null,null,null,null,null,null,0]
["количество несоответствий [Σ ]",{"$f":"SUM(B43:B77)","v":4145.1000000000004},4391,0,0,0,0,0,0,0,0,0,{"$f":"SUM(M43:M77)","v":8536.1}]